[Event "Serbian League 2024"]
[Site "Bajina Basta"]
[Date "2024.09.28"]
[Round "2.31"]
[White "Adhiban, B.."]
[Black "Kuybokarov, Temur"]
[Result "1/2-1/2"]
[ECO "C54"]
[WhiteElo "2537"]
[BlackElo "2562"]
[Annotator "TA"]
[PlyCount "138"]
[EventDate "2024.09.26"]
[EventType "team-tourn"]
[EventCountry "SRB"]
[SourceTitle "playchess.com"]
[Source "ChessBase"]
[SourceQuality "1"]
[TimeControl "40/5400+30:1800+30"]

{[%evp 60,138,26,31,24,32,29,22,28,19,27,18,70,70,70,45,70,45,70,70,85,85,85,85,85,85,85,5,5,8,44,8,12,38,45,45,45,45,102,102,102,0,102,102,102,102,102,102,102,102,102,0,102,0,0,0,0,0,0,0,0,0,0,0,0,0,0,0,0,0,0,0,0,0,0,0,0,0,0,0,0]} 1. e4 {[%emt 0:00:07]} e5 {[%emt 0:00:08]} 2. Nf3 {[%emt 0:00:10]} Nc6 {[%emt 0:00:07]} 3. Bc4 {[%emt 0:00:12]} Bc5 {[%emt 0:00:10]} 4. c3 {[%emt 0:00:24]} Nf6 {[%emt 0:00:10]} 5. d3 {[%emt 0:00:09]} d6 {[%emt 0:00:17]} 6. Bg5 {[%emt 0:00:16]} h6 {[%emt 0:00:27]} 7. Bh4 {[%emt 0:00:05]} a6 {[%emt 0:00:39]} 8. Nbd2 {[%emt 0:00:37] C54: Giuoco Piano: 4 c3 Nf6, main lines with 5 d4 and 5 d3.} Ba7 {[%emt 0:00:29]} 9. O-O {[%emt 0:03:38]} Qe7 {[%emt 0:00:15]} 10. b4 {[%emt 0:01:27]} Be6 {[%emt 0:00:11]} 11. a4 {[%emt 0:02:13]} O-O {[%emt 0:03:22]} 12. Rb1 {[%emt 0:05:20]} Bxc4 {[%emt 0:04:34]} 13. Nxc4 {[%emt 0:04:28]} Qe6 {[%emt 0:04:11]} 14. b5 {[%emt 0:05:32]} axb5 $146 {[%emt 0:01:05]} ({Predecessor:} 14... Ne7 15. Bxf6 Qxf6 16. b6 cxb6 17. Nxb6 Qe6 18. Nxa8 Rxa8 19. Rxb7 {1-0 Zwirs,N (2467)-Van der Hagen,L (2334) Dortmund Sparkassen op-A 51st 2024 (4)}) 15. axb5 {[%emt 0:00:54]} Nb8 {[%emt 0:01:58]} 16. b6 {[%emt 0:04:00]} Bxb6 {[%emt 0:01:01]} 17. Nxb6 {[%emt 0:00:22]} cxb6 {[%emt 0:00:04]} 18. Bxf6 {[%emt 0:01:14]} Qxf6 {[%emt 0:00:14]} 19. Rxb6 {[%emt 0:00:04]} Nd7 {[%emt 0:03:31]} 20. Rxb7 {[%emt 0:00:36]} Nc5 {[%emt 0:00:20]} 21. Rb6 {[%emt 0:02:13]} Ra3 {[%emt 0:30:36]} 22. d4 {[%emt 0:07:52]} Nxe4 {[%emt 0:02:36]} 23. dxe5 {[%emt 0:00:10]} Qd8 {[%emt 0:03:33]} 24. Rb4 {[%emt 0:04:48]} Nxc3 {[%emt 0:01:36]} 25. Qxd6 {[%emt 0:00:32]} Qxd6 {[%emt 0:00:09]} 26. exd6 {[%emt 0:00:04]} Ra6 {[%emt 0:02:35]} 27. d7 {[%emt 0:03:06]} Rd6 {[%emt 0:06:30]} 28. Ne5 {[%emt 0:03:04]} f6 {[%emt 0:00:32]} 29. Ng6 {[%emt 0:00:15]} Rd8 {[%emt 0:00:23]} 30. h4 {[%emt 0:01:58]} h5 {[%emt 0:11:59]} 31. Nf4 {[%emt 0:01:45]} R6xd7 {[%emt 0:03:17]} 32. Nxh5 {[%emt 0:01:37]} Rd4 {[%emt 0:00:37]} 33. Rxd4 {[%emt 0:00:16]} Ne2+ {[%emt 0:01:20]} 34. Kh2 {[%emt 0:01:01]} Rxd4 {[%emt 0:00:10]} 35. Kh3 {[%emt 0:05:52]} Nf4+ {[%emt 0:01:15]} (35... Kf7 $11) 36. Nxf4 $14 {[%emt 0:00:32]} Rxf4 {[%emt 0:00:04]} 37. f3 {[%emt 0:00:45]} Kh7 {[%emt 0:01:57]} 38. Re1 {[%emt 0:02:44]} Ra4 {[%emt 0:00:26]} 39. g4 {[%emt 0:00:36]} Rb4 {[%emt 0:01:12]} 40. Kg3 {[%emt 0:00:07]} Ra4 {[%emt 0:00:10]} 41. Re3 {[%emt 0:30:10]} Ra1 {[%emt 0:30:43]} 42. Re2 {[%emt 0:02:33]} Ra4 {[%emt 0:02:03]} 43. f4 {[%emt 0:02:31]} ({White should play} 43. Re7 $16) 43... Ra3+ $11 {[%emt 0:00:40]} 44. Kg2 {[%emt 0:00:07]} Ra5 {[%emt 0:03:58]} 45. f5 {[%emt 0:00:19]} g6 {[%emt 0:03:14]} 46. Re7+ {[%emt 0:05:01]} Kh6 {[%emt 0:00:06]} 47. fxg6 {[%emt 0:00:05]} Kxg6 {[%emt 0:00:16]} 48. Kf3 {[%emt 0:00:04]} Ra1 {[%emt 0:01:59]} (48... f5 $1 $14) 49. h5+ $16 {[%emt 0:02:03]} Kh6 {[%emt 0:01:03]} 50. Rf7 {[%emt 0:00:15]} ({White should try} 50. Rb7 $16) 50... Rf1+ {[%emt 0:01:14]} (50... Ra3+ $1 $11 51. Kg2 Kg5) 51. Ke3 {[%emt 0:08:34]} Re1+ {[%emt 0:00:00]} 52. Kf2 {[%emt 0:00:00]} Re6 {[%emt 0:00:28]} 53. Kf3 {[%emt 0:00:00]} Ra6 {[%emt 0:00:24]} 54. Kf4 {[%emt 0:00:00]} Ra4+ {[%emt 0:00:44]} 55. Kf5 {[%emt 0:00:00]} Ra5+ {[%emt 0:00:22] [#]} 56. Kxf6 {[%emt 0:00:00]} (56. Ke6 $1 $16 Ra6+ 57. Kf5 Ra5+ 58. Ke6 (58. Kxf6 Ra4 $11) 58... Ra6+ 59. Kf5 Ra5+) 56... Ra4 $1 $11 {[%emt 0:00:23]} 57. g5+ {[%emt 0:00:00]} (57. Rf8 $5 Rf4+ $8 58. Ke7 Rxg4 59. Rf6+ Kxh5 60. Ke6 $11) 57... Kxh5 {[%emt 0:00:06]} 58. Rh7+ {[%emt 0:00:00]} (58. g6 $5 Ra6+ $8 59. Kf5 Rxg6 60. Rh7+ Rh6 61. Rxh6+ Kxh6 $11) 58... Kg4 {[%emt 0:00:05]} 59. g6 {[%emt 0:00:00]} (59. Rh1 $5 Ra6+ $8 60. Ke5 $11) 59... Ra6+ $1 {[%emt 0:00:09]} 60. Kf7 {[%emt 0:00:00]} (60. Kg7 $5 Kg5 $8 61. Kf7 Rf6+ 62. Ke7 Rxg6 63. Rh1 $11) 60... Ra7+ $1 {[%emt 0:00:21]} 61. Kf6 {[%emt 0:00:00]} (61. Ke6 $5 Ra6+ $8 62. Kf7 Ra7+ 63. Kf8 Ra8+ 64. Kg7 $11) 61... Ra6+ {[%emt 0:00:07]} 62. Kf7 {[%emt 0:00:00]} (62. Kg7 $5 Kg5 $8 63. Kf7 Rf6+ 64. Ke7 Kxg6 65. Rh8 $11) 62... Ra7+ $1 {[%emt 0:00:04]} 63. Ke8 {[%emt 0:00:00]} (63. Ke6 $5 Ra6+ $8 64. Kf7 $11) 63... Ra8+ {[%emt 0:00:06]} 64. Ke7 {[%emt 0:00:00]} Ra7+ {[%emt 0:00:25]} 65. Kf6 {[%emt 0:00:00]} (65. Kd6 $5 Ra6+ $8 66. Kd5 Rxg6 67. Rh1 $11) 65... Ra6+ {[%emt 0:00:04]} 66. Kf7 {[%emt 0:00:00]} (66. Kg7 $5 Kg5 $8 67. Kf7 Rf6+ 68. Kg8 Kxg6 69. Rg7+ Kh6 70. Rg4 $11) 66... Ra7+ $1 {[%emt 0:00:04]} 67. Kf6 {[%emt 0:00:00]} (67. Ke6 $5 Ra6+ $8 68. Kf7 $11) 67... Ra6+ {[%emt 0:00:05]} 68. Kf7 {[%emt 0:00:00]} (68. Kg7 $5 Kg5 $8 69. Kf7 Rf6+ 70. Ke7 Rxg6 71. Rh1 $11) 68... Ra7+ $1 {[%emt 0:00:04]} 69. Kf6 {[%emt 0:00:00]} (69. Kg8 $5 Ra8+ $8 70. Kf7 Ra7+ $11) 69... Ra6+ {[%emt 0:00:03]} 1/2-1/2

[Event "Serbian League 2024"]
[Site "Bajina Basta"]
[Date "2024.09.28"]
[Round "2.32"]
[White "Sychev, Klementy"]
[Black "Can, Emre"]
[Result "1/2-1/2"]
[ECO "B90"]
[WhiteElo "2532"]
[BlackElo "2547"]
[Annotator "TA"]
[PlyCount "119"]
[EventDate "2024.09.26"]
[EventType "team-tourn"]
[EventCountry "SRB"]
[SourceTitle "playchess.com"]
[Source "ChessBase"]
[SourceQuality "1"]
[TimeControl "40/5400+30:1800+30"]

{[%evp 27,119,33,33,29,45,0,24,27,26,12,26,0,14,0,0,0,-4,0,0,0,0,0,43,47,52,44,49,43,43,43,43,43,57,57,57,57,57,57,57,57,57,57,57,57,57,57,58,0,57,57,57,57,57,57,57,57,57,57,57,57,57,57,57,57,57,54,54,54,57,57,57,57,57,57,57,57,57,57,57,19,57,19,57,19,57,57,57,57,57,54,54,27,27,27]} 1. e4 {[%emt 1:31:00]} c5 {[%emt 1:31:00]} 2. Nf3 {[%emt 0:00:30]} d6 {[%emt 0:00:30]} 3. d4 {[%emt 0:00:30]} cxd4 {[%emt 0:00:30]} 4. Nxd4 {[%emt 0:00:30]} Nf6 {[%emt 0:00:30]} 5. Nc3 {[%emt 0:00:30]} a6 {[%emt 0:00:30]} 6. Bd3 {[%emt 0:00:30]} e5 {[%emt 0:00:30]} 7. Nde2 {[%emt 0:00:30]} Be7 {[%emt 0:00:30]} 8. O-O {[%emt 0:00:30]} O-O {[%emt 0:00:30]} 9. Ng3 {[%emt 0:00:30] B90: Sicilian Najdorf: Unusual White 6th moves, 6 Be3 Ng4 and 6 Be3 e5.} Be6 {[%emt 0:00:30]} 10. Nd5 {[%emt 0:00:30]} Nxd5 {[%emt 0:00:30]} 11. exd5 {[%emt 0:00:30]} Bxd5 {[%emt 0:00:30]} 12. Bxh7+ {[%emt 0:00:30]} Kxh7 {[%emt 0:00:30]} 13. Qxd5 {[%emt 0:00:30]} Nc6 {[%emt 0:00:30]} 14. Nf5 {[%emt 0:00:30] 14.f4 is more fashionable.} Qd7 {[%emt 0:00:30]} 15. Qf3 {[%emt 0:00:30]} Rad8 {[%emt 0:00:30]} 16. b3 $146 ({Predecessor:} 16. Rd1 g6 17. Nxe7 Qxe7 18. Qh3+ Kg8 19. b3 Nd4 20. Bb2 Nxc2 21. Rac1 Nd4 22. Bxd4 exd4 {½-½ Willow,J (2414)-Wachinger,N (2454) Darlington Northumbria GM 2024 (1)}) 16... g6 {[%emt 0:00:30]} 17. Nxe7 Qxe7 18. c4 Nd4 19. Qh3+ Kg8 20. Bb2 d5 21. cxd5 Rxd5 22. Rae1 Qc5 23. Re4 Qc8 ({Of course not} 23... Qc2 24. Rh4 Kg7 (24... Qxb2 25. Rh8+ Kg7 26. Qh7+ Kf6 27. Rxf8 $18) (24... Ne2+ $2 25. Kh1 $18) 25. Rh7+ Kf6 26. Bxd4 exd4 27. Re1 $14) 24. Qe3 Qc2 25. Bxd4 exd4 26. Rxd4 Rxd4 27. Qxd4 Qxa2 {[%emt 0:05:30]} 28. Qb6 {[%emt 0:06:30]} a5 {[%emt 0:00:30]} 29. Qxb7 {[%emt 0:00:30]} a4 {[%emt 0:00:30]} 30. bxa4 {[%emt 0:00:30]} Qxa4 {[%emt 0:00:30]} 31. Re1 {[%emt 0:00:30]} Rd8 {[%emt 0:00:30]} 32. g3 {[%emt 0:00:30]} Qd7 {[%emt 0:00:30]} 33. Qb2 {[%emt 0:00:30]} Qd4 {[%emt 0:00:30]} 34. Qe2 {[%emt 0:00:30]} Qd2 {[%emt 0:00:30]} 35. Qe4 {[%emt 0:00:30]} Qd4 {[%emt 0:00:30]} 36. Qf3 {[%emt 0:00:30]} (36. Qxd4 {simplifies} Rxd4 37. Kg2 Kg7 38. h4) 36... Qd2 {[%emt 0:00:30]} 37. Qe4 {[%emt 0:00:30]} Qd4 $1 {[%emt 0:00:30]} 38. Qe7 {[%emt 0:00:30]} Qd6 {[%emt 0:00:30]} 39. Qg5 {[%emt 0:00:30]} Kg7 {[%emt 0:00:30]} 40. h4 {[%emt 0:00:30]} Qf6 {[%emt 0:00:30]} 41. Qe3 {[%emt 0:30:30]} Qd4 {[%emt 0:30:30]} 42. Qf3 {[%emt 0:00:30]} Qd2 {[%emt 0:00:30]} 43. Qe4 {[%emt 0:00:30]} Qd4 {[%emt 0:00:30]} 44. Qe7 {[%emt 0:00:30]} (44. Qxd4+ {simplifies} Rxd4 45. Kg2 Rb4 46. Re7) 44... Rd7 {[%emt 0:00:30]} 45. Qe2 {[%emt 0:00:30]} Rd6 {[%emt 0:00:30]} 46. Qe5+ {[%emt 0:00:30]} Qxe5 {[%emt 0:00:30]} 47. Rxe5 {[%emt 0:00:30]} f5 {[%emt 0:00:30]} 48. Kg2 {[%emt 0:00:30]} Kf6 {[%emt 0:00:30]} 49. Ra5 {[%emt 0:00:30]} Rd3 {[%emt 0:00:30]} 50. Ra6+ {[%emt 0:00:30]} Kg7 {[%emt 0:00:30]} 51. Re6 {[%emt 0:00:30]} Ra3 {[%emt 0:00:30]} 52. Re3 {[%emt 0:00:30]} Ra4 {[%emt 0:00:30]} 53. Kf3 {[%emt 0:00:30]} Kf6 {[%emt 0:00:30]} 54. Rd3 {[%emt 0:00:30]} Ra6 {[%emt 0:00:30]} 55. Rd4 {[%emt 0:00:30]} Ra3+ {[%emt 0:00:30]} 56. Kf4 {[%emt 0:00:30]} Ra6 {[%emt 0:00:30]} 57. Rb4 {[%emt 0:00:30]} Rc6 {[%emt 0:00:30]} 58. f3 {[%emt 0:00:30]} Ra6 {[%emt 0:00:30]} 59. g4 {[%emt 0:00:30]} fxg4 $1 {[%emt 0:00:30]} 60. fxg4 {[%emt 0:00:30]} 1/2-1/2

[Event "Serbian League 2024"]
[Site "Bajina Basta"]
[Date "2024.09.28"]
[Round "2.33"]
[White "Bogosavljevic, Boban"]
[Black "Maksimovic, Bojan"]
[Result "0-1"]
[ECO "E62"]
[WhiteElo "2486"]
[BlackElo "2503"]
[Annotator "TA"]
[PlyCount "64"]
[EventDate "2024.09.26"]
[EventType "team-tourn"]
[EventCountry "SRB"]
[SourceTitle "playchess.com"]
[Source "ChessBase"]
[SourceQuality "1"]
[TimeControl "40/5400+30:1800+30"]

{[%evp 18,64,16,15,15,14,11,20,18,12,12,8,10,0,-3,-18,-22,-9,-9,-35,-32,-31,-31,-29,-27,-27,-34,-42,-27,-44,-52,-45,-8,-55,-58,-108,-85,-121,-122,-433,-416,-333,-343,-555,-549,-530,-496,-508,-493]} 1. Nf3 {[%emt 1:31:00]} Nf6 {[%emt 1:31:00]} 2. g3 {[%emt 0:00:30]} g6 {[%emt 0:00:30]} 3. Bg2 {[%emt 0:00:30]} Bg7 {[%emt 0:00:30]} 4. O-O {[%emt 0:00:30]} O-O {[%emt 0:00:30]} 5. c4 {[%emt 0:00:30]} d6 {[%emt 0:00:30]} 6. d4 {[%emt 0:00:30]} c6 {[%emt 0:00:30]} 7. Nc3 {[%emt 0:00:30]} Bf5 {[%emt 0:00:30]} 8. Re1 {[%emt 0:00:30]} Ne4 {[%emt 0:00:30]} 9. Qb3 {[%emt 0:00:30]} Nxc3 {[%emt 0:00:30]} 10. bxc3 {[%emt 0:00:30][%cal Oe2e4]} Bc8 {[%emt 0:00:30]} 11. e4 {[%emt 0:00:30]} c5 {[%emt 0:00:30]} 12. e5 {[%emt 0:00:30]} Nc6 $1 {[%emt 0:00:30] The position is equal.} 13. exd6 {[%emt 0:00:30]} exd6 {[%emt 0:00:30]} 14. Bg5 {[%emt 0:00:30]} Qc7 {[%emt 0:00:30]} 15. Rad1 {[%emt 0:00:30]} Na5 {[%emt 0:00:30]} 16. Re7 {[%emt 0:00:30]} (16. Qc2 {is more complex.} Nxc4 17. Re7 Qa5 18. dxc5 Qxc5 19. Qc1) 16... Qxe7 {[%emt 0:00:30]} 17. Bxe7 {[%emt 0:00:30]} Nxb3 {[%emt 0:00:30]} 18. Bxf8 {[%emt 0:00:30]} Kxf8 {[%emt 0:00:30]} 19. axb3 {[%emt 0:00:30]} Bf5 {[%emt 0:00:30]} 20. dxc5 {[%emt 0:00:30]} dxc5 {[%emt 0:00:30][%cal Oa8e8]} 21. Ng5 {[%emt 0:00:30][%csl LRb7,LRh7]} Bxc3 {[%emt 0:00:30]} 22. Bxb7 {[%emt 0:00:30]} Re8 {[%emt 0:00:30] Hoping for ...f6.} 23. Nxh7+ {[%emt 0:00:30]} Kg7 {[%emt 0:00:30]} 24. Ng5 {[%emt 0:00:30]} f6 {[%emt 0:00:30]} 25. Nf3 {[%emt 0:00:30]} (25. Bc6 $1 $11 Re2 26. Nf3) 25... Rb8 $15 {[%emt 0:00:30]} 26. Bc6 {[%emt 0:00:30]} (26. g4 $1 $15) 26... Rxb3 $17 {[%emt 0:00:30]} 27. Kg2 {[%emt 0:00:30]} Rb6 {[%emt 0:00:30]} 28. Bd5 {[%emt 0:00:30][%mdl 8192] Loses the game.} (28. Ba4 $17 {is more resistant.}) 28... Rb1 $19 {[%emt 0:00:30]} 29. Rxb1 {[%emt 0:00:30]} Bxb1 {[%emt 0:00:30] This pair of bishops is nice.} 30. Ng1 $2 {[%emt 0:00:30]} (30. Bc6 {was the only defense.}) 30... a5 {[%emt 0:00:30] [#] ...a4 would now be deadly. Black is clearly winning.} 31. Ne2 {[%emt 0:00:30]} Bd2 {[%emt 0:00:30] aiming for ...a4.} 32. Bc6 {[%emt 0:00:30]} Bc2 {[%emt 0:00:30] Prevents Ba4.   Weighted Error Value: White=0.44/Black=0.02 (flawless) .  Loses game:     	White=1     	---        Mistake:       	White=3     	---        Inaccurate:     	White=2     	Black=1      OK:         	White=7     	Black=11     Best:        	White=1     	Black=4      Strong:       	---       	Black=1} 0-1

[Event "Serbian League 2024"]
[Site "Bajina Basta"]
[Date "2024.09.28"]
[Round "2.34"]
[White "Pap, Misa"]
[Black "Zajic, Milan"]
[Result "1-0"]
[ECO "C11"]
[WhiteElo "2389"]
[BlackElo "2404"]
[Annotator "ChessBase"]
[PlyCount "72"]
[EventDate "2024.09.26"]
[EventType "team-tourn"]
[EventCountry "SRB"]
[SourceTitle "playchess.com"]
[Source "ChessBase"]
[SourceQuality "1"]
[TimeControl "40/5400+30:1800+30"]

1. e4 {[%emt 0:06:34]} e6 {[%emt 0:00:06]} 2. d4 {[%emt 0:00:04]} d5 {[%emt 0:00:05]} 3. Nc3 {[%emt 0:00:04]} Nf6 {[%emt 0:00:18]} 4. e5 {[%emt 0:00:03]} Nfd7 {[%emt 0:00:07]} 5. f4 {[%emt 0:00:04]} c5 {[%emt 0:00:16]} 6. Nf3 {[%emt 0:00:03]} Nc6 {[%emt 0:00:44]} 7. Be3 {[%emt 0:03:24]} cxd4 {[%emt 0:06:41]} 8. Nxd4 {[%emt 0:00:53]} Bc5 {[%emt 0:00:07]} 9. Qd2 {[%emt 0:06:15]} Nxd4 {[%emt 0:02:45]} 10. Bxd4 {[%emt 0:00:03]} Bxd4 {[%emt 0:00:08]} 11. Qxd4 {[%emt 0:00:01]} Qb6 {[%emt 0:00:25]} 12. O-O-O {[%emt 0:04:37]} Qxd4 {[%emt 0:00:59]} 13. Rxd4 {[%emt 0:00:02]} a6 {[%emt 0:00:34]} 14. Be2 {[%emt 0:02:40]} Nb8 {[%emt 0:15:07]} 15. Re1 {[%emt 0:03:19]} Nc6 {[%emt 0:01:50]} 16. Rd2 {[%emt 0:00:06]} Bd7 {[%emt 0:06:05]} 17. Bf3 {[%emt 0:01:50]} O-O {[%emt 0:05:29]} 18. h4 {[%emt 0:05:31]} Rac8 {[%emt 0:03:34]} 19. h5 {[%emt 0:01:13]} h6 {[%emt 0:06:48]} 20. g4 {[%emt 0:14:29]} g5 {[%emt 0:21:23]} 21. fxg5 {[%emt 0:17:49]} hxg5 {[%emt 0:00:06]} 22. Bd1 {[%emt 0:00:12]} Kg7 {[%emt 0:03:04]} 23. b3 {[%emt 0:08:33]} Rc7 {[%emt 0:07:03]} 24. Kb2 {[%emt 0:00:41]} f6 {[%emt 0:00:36]} 25. exf6+ {[%emt 0:00:36]} Rxf6 {[%emt 0:00:08]} 26. Na4 {[%emt 0:10:28]} Ne7 {[%emt 0:08:07]} 27. Nb6 {[%emt 0:01:48]} Be8 {[%emt 0:00:10]} 28. c4 {[%emt 0:02:38]} Bf7 {[%emt 0:03:27]} 29. a4 {[%emt 0:02:51]} Rf4 {[%emt 0:01:48]} 30. Rc2 {[%emt 0:03:57]} Ng8 {[%emt 0:02:30]} 31. a5 {[%emt 0:01:38]} d4 {[%emt 0:03:49]} 32. b4 {[%emt 0:01:55]} Nf6 {[%emt 0:00:17]} 33. Rg2 {[%emt 0:00:37]} Ne4 {[%emt 0:01:41]} 34. Bc2 {[%emt 0:00:11]} Nf6 {[%emt 0:00:07]} 35. Bd1 {[%emt 0:00:41]} Ne4 {[%emt 0:00:00]} 36. Bc2 {[%emt 0:00:05]} Nf6 {[%emt 0:00:56]} 1-0

[Event "Serbian League 2024"]
[Site "Bajina Basta"]
[Date "2024.09.28"]
[Round "2.35"]
[White "Roganovic, Milos"]
[Black "Damljanovic, Branko"]
[Result "1/2-1/2"]
[ECO "C50"]
[WhiteElo "2434"]
[BlackElo "2354"]
[Annotator "ChessBase"]
[PlyCount "111"]
[EventDate "2024.09.26"]
[EventType "team-tourn"]
[EventCountry "SRB"]
[SourceTitle "playchess.com"]
[Source "ChessBase"]
[SourceQuality "1"]
[TimeControl "40/5400+30:1800+30"]

1. e4 {[%emt 0:00:08]} e5 {[%emt 0:02:14]} 2. Nf3 {[%emt 0:00:58]} Nc6 {[%emt 0:00:07]} 3. Bc4 {[%emt 0:01:07]} Be7 {[%emt 0:02:33]} 4. d4 {[%emt 0:03:17]} d6 {[%emt 0:02:38]} 5. h3 {[%emt 0:04:19]} Nf6 {[%emt 0:00:58]} 6. Nc3 {[%emt 0:00:55]} O-O {[%emt 0:01:49]} 7. O-O {[%emt 0:05:11]} a6 {[%emt 0:11:26]} 8. a4 {[%emt 0:04:49]} Bd7 {[%emt 0:01:57]} 9. Re1 {[%emt 0:04:00]} Rb8 {[%emt 0:09:41]} 10. d5 {[%emt 0:09:13]} Na7 {[%emt 0:02:06]} 11. Be3 {[%emt 0:01:52]} Nc8 {[%emt 0:00:13]} 12. a5 {[%emt 0:04:04]} Kh8 {[%emt 0:06:00]} 13. b4 {[%emt 0:06:11]} Ra8 {[%emt 0:15:45]} 14. Bd3 {[%emt 0:15:08]} Ng8 {[%emt 0:01:35]} 15. Kh2 {[%emt 0:11:49]} Qe8 {[%emt 0:19:42]} 16. Ne2 {[%emt 0:03:05]} Bd8 {[%emt 0:00:44]} 17. g4 {[%emt 0:01:47]} Nce7 {[%emt 0:04:39]} 18. Ng3 {[%emt 0:00:26]} g6 {[%emt 0:00:01]} 19. Rg1 {[%emt 0:01:13]} f5 {[%emt 0:01:12]} 20. gxf5 {[%emt 0:01:56]} gxf5 {[%emt 0:00:04]} 21. exf5 {[%emt 0:03:24]} Nxd5 {[%emt 0:03:05]} 22. Qd2 {[%emt 0:00:20]} Nxe3 {[%emt 0:06:38]} 23. fxe3 {[%emt 0:00:23]} d5 {[%emt 0:04:37]} 24. e4 {[%emt 0:00:35]} c6 {[%emt 0:00:07]} 25. Rg2 {[%emt 0:01:40]} Bf6 {[%emt 0:00:47]} 26. Rag1 {[%emt 0:00:20]} Qf7 {[%emt 0:00:21]} 27. Ng5 {[%emt 0:02:29]} Bxg5 {[%emt 0:00:11]} 28. Qxg5 {[%emt 0:00:05]} Nf6 {[%emt 0:00:12]} 29. Qh4 {[%emt 0:00:54]} Rg8 {[%emt 0:00:26]} 30. Be2 {[%emt 0:00:25]} Raf8 {[%emt 0:02:53]} 31. Bh5 {[%emt 0:02:16]} Qe7 {[%emt 0:00:14]} 32. Kh1 {[%emt 0:03:44]} Rg7 {[%emt 0:00:06]} 33. exd5 {[%emt 0:02:39]} Nxd5 {[%emt 0:00:52]} 34. Qxe7 {[%emt 0:02:04]} Rxe7 {[%emt 0:00:15]} 35. Ne4 {[%emt 0:00:10]} Bxf5 {[%emt 0:00:31]} 36. Nd6 {[%emt 0:00:04]} Be6 {[%emt 0:00:54]} 37. Rg5 {[%emt 0:03:10]} Nf4 {[%emt 0:00:21]} 38. Re1 {[%emt 0:00:32]} Bd5+ {[%emt 0:00:32]} 39. Kh2 {[%emt 0:00:11]} Nxh5 {[%emt 0:00:07]} 40. Rxh5 {[%emt 0:00:07]} Rf2+ {[%emt 0:00:33]} 41. Kg3 {[%emt 0:30:01]} Rf3+ {[%emt 0:31:11]} 42. Kh2 {[%emt 0:01:07]} Rf6 {[%emt 0:00:00]} 43. Nf5 {[%emt 0:00:00]} Re8 {[%emt 0:00:00]} 44. Ne3 {[%emt 0:00:00]} Bf3 {[%emt 0:00:00]} 45. Rg5 {[%emt 0:00:00]} e4 {[%emt 0:00:00]} 46. Reg1 {[%emt 0:00:00]} Rd6 {[%emt 0:00:00]} 47. h4 {[%emt 0:00:00]} Rf8 {[%emt 0:00:00]} 48. Nf5 {[%emt 0:00:00]} Rg6 {[%emt 0:00:00]} 49. Rxg6 {[%emt 0:00:00]} hxg6 {[%emt 0:00:00]} 50. Ne7 {[%emt 0:00:00]} Bh5 {[%emt 0:01:24]} 51. Nxg6+ {[%emt 0:00:00]} Bxg6 {[%emt 0:00:04]} 52. Rxg6 {[%emt 0:00:00]} Rf2+ {[%emt 0:00:05]} 53. Kg3 {[%emt 0:00:00]} Rxc2 {[%emt 0:00:04]} 54. Re6 {[%emt 0:00:00]} c5 {[%emt 0:00:15]} 55. Rxe4 {[%emt 0:00:00]} cxb4 {[%emt 0:00:07]} 56. Rxb4 {[%emt 0:00:00]} 1/2-1/2

[Event "Serbian League 2024"]
[Site "Bajina Basta"]
[Date "2024.09.28"]
[Round "2.36"]
[White "Ivanovic, Marko"]
[Black "Pezelj, Novak"]
[Result "1/2-1/2"]
[ECO "C88"]
[WhiteElo "2240"]
[BlackElo "2460"]
[Annotator "TA"]
[PlyCount "81"]
[EventDate "2024.09.26"]
[EventType "team-tourn"]
[EventCountry "SRB"]
[SourceTitle "playchess.com"]
[Source "ChessBase"]
[SourceQuality "1"]
[TimeControl "40/5400+30:1800+30"]

{[%evp 17,81,35,34,22,32,35,19,13,20,14,14,0,0,0,0,0,0,0,33,0,18,0,0,0,0,0,61,62,69,58,91,93,87,87,84,91,81,89,91,64,69,77,69,76,65,83,73,64,87,56,76,41,50,43,43,34,38,28,54,8,41,28,38,8,13,18]} 1. e4 {[%emt 0:00:16]} e5 {[%emt 0:00:01]} 2. Nf3 {[%emt 0:00:07]} Nc6 {[%emt 0:00:02]} 3. Bb5 {[%emt 0:00:32][%cal Bf1b5,Bb5a4,Ba4b3][%mdl 32]} a6 {[%emt 0:00:02]} 4. Ba4 {[%emt 0:00:11]} Nf6 {[%emt 0:00:01]} 5. O-O {[%emt 0:00:29]} Be7 {[%emt 0:00:02]} 6. Re1 {[%emt 0:00:11]} b5 {[%emt 0:00:02]} 7. Bb3 {[%emt 0:00:07]} O-O {[%emt 0:00:03]} 8. d3 {[%emt 0:01:32]} Bb7 {[%emt 0:00:32]} 9. Nbd2 {[%emt 0:01:18]} Re8 {[%emt 0:05:46]} 10. Nf1 {[%emt 0:04:50]} Bf8 {[%emt 0:06:17]} 11. Bg5 {[%emt 0:12:42]} Na5 {[%emt 0:16:23]} 12. d4 {[%emt 0:15:14]} Nxb3 {[%emt 0:00:02]} (12... Bxe4 $2 13. Rxe4 (13. Nxe5 Nxb3 14. axb3 Bg6 $16) 13... Nxb3 14. axb3 $18) 13. axb3 {[%emt 0:00:06]} d6 {[%emt 0:04:45]} (13... Bxe4 $2 {too greedy.} 14. Rxe4 (14. dxe5 h6 $18) (14. Nxe5 Bb7 $14) 14... Be7 15. Rxe5 $18 (15. Bxf6 Bxf6 16. dxe5 d6 $18)) 14. dxe5 {[%emt 0:01:43]} dxe5 {[%emt 0:00:07]} 15. Qxd8 {[%emt 0:00:44]} Raxd8 {[%emt 0:00:18]} 16. Bxf6 {[%emt 0:00:07]} gxf6 {[%emt 0:00:05]} 17. Ng3 {[%emt 0:00:35]} Bc5 {[%emt 0:05:26]} 18. Rad1 {[%emt 0:01:59]} Kf8 {[%emt 0:01:58]} 19. h3 {[%emt 0:08:55]} Rd6 {[%emt 0:02:26]} 20. Rxd6 {[%emt 0:03:56]} cxd6 {[%emt 0:01:29]} 21. Nh2 {[%emt 0:13:44]} d5 {[%emt 0:31:09]} ({Better is} 21... Rc8 $11) 22. exd5 $14 {[%emt 0:02:42]} Bxd5 {[%emt 0:00:57]} 23. Ng4 {[%emt 0:00:10]} Be7 {[%emt 0:10:24] [#]} 24. Nh5 $1 {[%emt 0:04:30]} Rc8 {[%emt 0:01:11]} 25. Ngxf6 {[%emt 0:00:55]} Be6 {[%emt 0:01:02]} 26. c3 {[%emt 0:01:46]} ({But not} 26. Rxe5 $6 Bxf6 27. Nxf6 Rxc2 $11) 26... Bxf6 {[%emt 0:04:17]} 27. Nxf6 $16 {[%emt 0:00:19][%mdl 4096] Endgame. KRB-KRN} Ke7 {[%emt 0:00:18]} 28. Ne4 {[%emt 0:03:21]} ({Worse is} 28. Nxh7 f6 $15) 28... Bxb3 {[%emt 0:06:20]} 29. Nd2 {[%emt 0:00:35][%csl LRb3,LRe5]} Be6 {[%emt 0:00:57]} 30. Rxe5 {[%emt 0:00:14]} b4 {[%emt 0:01:45]} 31. Ne4 {[%emt 0:12:25]} bxc3 {[%emt 0:00:35]} 32. Nxc3 {[%emt 0:00:08]} Kf6 {[%emt 0:00:58]} 33. f4 {[%emt 0:01:24]} Rc4 {[%emt 0:00:27]} 34. Ne4+ {[%emt 0:01:10]} Kg7 {[%emt 0:00:10]} 35. Ng5 {[%emt 0:02:23]} Bc8 {[%emt 0:00:44]} 36. Re4 {[%emt 0:00:21]} Rc7 {[%emt 0:00:40]} 37. Re2 {[%emt 0:00:53]} Bb7 {[%emt 0:00:30]} 38. Kf2 {[%emt 0:01:16]} (38. Ne4 $14 {might be stronger.}) 38... h6 {[%emt 0:00:33]} 39. Nf3 {[%emt 0:00:05]} Rc4 {[%emt 0:00:27] Repels Nd4} 40. g3 {[%emt 0:00:46]} Rb4 {[%emt 0:00:40]} 41. Ne5 {[%emt 0:35:34] Weighted Error Value: White=0.08 (flawless) /Black=0.10 (very precise) .  Mistake:       	White=1     	Black=1      Inaccurate:     	White=4     	Black=4      OK:         	White=10    	Black=12     Best:        	White=3     	Black=1      Strong:       	White=1     	---} 1/2-1/2